bitfinex-derivatives/quotes_BNBF0:USTF0_20250329
["timestamp","ask_amount","ask_price","bid_price","bid_amount"]
[1743246173210,3.32940727,605.6,604.76,0.27089269]
[1743246173409,0.92244005,605.61,604.76,0.27089269]
[1743246173410,3.32940727,605.59,604.76,0.27089269]
[1743246173613,3.32845086,605.58,604.76,0.27089269]
[1743246173814,2.12375064,605.57,604.76,0.27089269]
[1743246174116,2.12375064,605.56,604.76,0.27089269]
[1743246174416,0.81682717,605.55,604.76,0.27089269]
[1743246174612,0.81682717,605.54,604.76,0.27089269]
[1743246174809,0.81682717,605.53,604.76,0.27089269]
[1743246175010,0.81682717,605.52,604.76,0.27089269]
[1743246175215,0.81682717,605.51,604.76,0.27089269]
[1743246175412,0.81682717,605.5,604.76,0.27089269]
[1743246175619,0.81682717,605.49,604.76,0.27089269]
[1743246175818,0.81644395,605.48,604.76,0.27089269]
[1743246176016,0.49551381,605.69,604.76,0.27089269]
[1743246176215,3.82164794,605.68,604.76,0.27089269]
[1743246176416,3.82164794,605.67,604.76,0.27089269]
[1743246176620,0.97038016,605.76,604.76,0.27089269]
[1743246176621,4.74309869,605.66,604.76,0.27089269]
[1743246176818,3.82164794,605.65,604.76,0.27089269]
[1743246177119,3.82164794,605.64,604.76,0.27089269]
[1743246177318,3.82164794,605.63,604.77,0.27089212]
[1743246177518,4.74309869,605.62,604.78,0.27089212]
[1743246177717,4.74309869,605.62,604.76,0.27089212]
[1743246177718,3.32613413,605.61,604.76,0.27089212]
[1743246177918,3.32613413,605.6,604.77,0.27089212]
[1743246178215,3.04420136,605.59,604.78,0.27089212]
[1743246178419,2.12275061,605.58,604.79,0.27089212]
[1743246178719,2.12275061,605.57,604.8,0.27089212]
[1743246178919,2.12275061,605.56,604.81,0.27089212]
[1743246179220,0.81644254,605.55,604.82,0.27088777]
[1743246179420,0.81644254,605.54,604.76,0.27088777]
[1743246179719,0.81644254,605.53,604.77,0.27088777]
[1743246179919,0.81644254,605.52,604.76,1.50167581]
[1743246180115,0.81644254,605.51,604.77,0.27088777]
[1743246180419,0.81644254,605.5,604.77,0.27088777]
[1743246180621,0.81576549,605.49,604.77,0.27088777]
[1743246180819,1.69790073,605.68,604.77,0.27088777]
[1743246181015,4.73981519,605.67,604.77,0.27088777]
[1743246181219,3.81895625,605.66,604.77,0.27088777]
[1743246181519,3.81895625,605.65,604.77,0.27088777]
[1743246181720,3.81895625,605.64,604.77,0.27088777]
[1743246181917,3.81895625,605.63,604.77,0.27088777]
[1743246182121,3.81895625,605.62,604.78,0.27089585]
[1743246182316,3.81895625,605.61,604.79,0.27089585]
[1743246182523,3.32344724,605.6,604.8,0.27089585]
[1743246182722,2.12100822,605.59,604.77,0.27089585]
[1743246183018,2.12100822,605.58,604.84,1.23078804]
[1743246183215,0.81559252,605.57,604.85,0.27089585]
[1743246183420,0.81559252,605.56,604.85,0.27089585]
[1743246183623,0.81559252,605.55,604.85,0.27089585]
[1743246183823,0.81559252,605.54,604.85,0.27089585]
[1743246184123,1.69744136,605.73,604.85,0.27089585]
[1743246184318,3.81768957,605.72,604.85,0.27089585]
[1743246184520,0.96936293,605.77,604.85,0.27089585]
[1743246184521,3.81768957,605.71,604.85,0.27089585]
[1743246184714,0.81548008,605.7,604.85,0.60155634]
[1743246184915,0.81548008,605.69,604.86,0.60155087]
[1743246185115,0.92041287,605.7,604.88,1.23078804]
[1743246185320,0.81557582,605.69,604.89,0.60153447]
[1743246185521,0.92041287,605.7,604.9,0.6014305]
[1743246185720,0.81530168,605.69,604.9,0.6014305]
[1743246185915,0.81530168,605.68,604.91,0.27079734]
[1743246186115,0.81530168,605.67,604.91,0.27079734]
[1743246186320,1.69700334,605.88,604.91,0.27079734]
[1743246186619,3.81640458,605.87,604.91,0.27079734]
[1743246186922,3.81640458,605.86,604.92,0.27079386]
[1743246187123,3.81640458,605.85,604.91,0.27079386]
[1743246187316,0.92015925,605.87,605.04,1.23078804]
[1743246187519,3.81706144,605.86,605.05,0.27079386]
[1743246187724,3.81706144,605.85,605.05,0.27079386]
[1743246187921,3.81706144,605.84,605.05,0.27079386]
[1743246188120,3.81706144,605.83,605.05,0.27079386]
[1743246188321,3.81706144,605.82,605.05,0.27079386]
[1743246188521,3.32171304,605.81,605.05,0.27079386]
[1743246188821,3.32171304,605.8,605.05,0.27079386]
[1743246189022,2.11990715,605.79,605.05,0.27079386]
[1743246189215,3.81687047,605.78,605.05,0.27079386]
[1743246189419,2.11981201,605.77,605.06,0.2708067]
[1743246189616,2.11981201,605.76,605.05,0.2708067]
[1743246189822,3.8168461,605.75,605.06,0.2708067]
[1743246190024,3.8168461,605.74,605.05,0.2708067]
[1743246190224,3.8168461,605.73,605.05,0.2708067]
[1743246190423,3.8168461,605.72,605.03,0.2708067]
[1743246190626,4.73700535,605.71,605.04,0.2708067]
[1743246190829,3.8168461,605.7,605.03,0.2708067]
[1743246191123,3.8168461,605.69,605.04,0.2708067]
[1743246191330,3.8168461,605.68,605.05,0.2708067]
[1743246191527,3.8168461,605.67,605.06,0.2708067]
[1743246191730,3.8168461,605.66,605.03,0.2708067]
[1743246192029,4.73700535,605.65,605.03,0.2708067]
[1743246192231,3.8168461,605.64,605.04,0.2708067]
[1743246192429,3.32146238,605.63,605.0,0.2708067]
[1743246192625,3.32146238,605.62,604.99,1.23078804]
[1743246192830,3.81819661,605.61,605.0,0.2708819]
[1743246193030,3.82021062,605.6,605.0,0.2708819]
[1743246193332,4.74006519,605.59,605.0,0.2708819]
[1743246193528,3.81990594,605.58,604.99,1.23078804]
[1743246193729,3.81990594,605.57,605.0,0.27092805]
[1743246193930,3.81990594,605.56,605.01,0.27092805]
[1743246194230,4.74006519,605.55,605.02,0.27092805]
[1743246194430,3.32435288,605.54,604.94,1.23078804]
[1743246194730,2.76080859,606.59,604.94,1.23078804]
[1743246194731,4.74013498,605.53,604.94,1.23078804]
[1743246194931,3.81997573,605.52,604.94,1.23078804]
[1743246195132,3.82348283,605.51,604.94,1.23078804]
[1743246195333,3.82348598,605.5,604.94,1.23078804]
[1743246195531,3.32785015,605.49,604.94,1.23078804]
[1743246195735,3.32785015,605.48,604.94,1.23078804]
[1743246195936,3.32785015,605.47,604.94,1.23078804]
[1743246196136,3.32785015,605.46,604.94,1.23078804]
[1743246196336,3.32785015,605.45,604.95,1.623]
[1743246196536,3.32785015,605.44,604.95,1.623]
[1743246196739,3.32785015,605.43,604.95,1.623]
[1743246196936,2.02085857,605.42,604.95,1.623]
[1743246197135,3.33003893,605.41,604.95,1.623]
[1743246197337,3.33003893,605.4,604.95,1.623]
[1743246197538,3.82574813,605.39,604.95,1.623]
[1743246197733,3.82574813,605.38,604.95,1.623]
[1743246198036,3.82574813,605.37,604.95,1.623]
[1743246198235,3.82574813,605.36,604.95,1.623]
[1743246198432,0.92015925,605.37,604.95,1.623]
[1743246198433,3.82574813,605.35,604.95,1.623]
[1743246198632,0.92015925,605.37,604.95,1.623]
[1743246198633,3.82574813,605.34,604.95,1.623]
[1743246198834,3.82574813,605.33,604.95,1.623]
[1743246199031,3.82574813,605.32,604.95,1.623]
[1743246199236,3.82574813,605.31,604.95,1.623]
[1743246199536,4.74590738,605.3,604.95,1.623]
[1743246199737,3.82574813,605.29,604.95,1.623]
[1743246199934,3.82574813,605.28,604.95,1.623]
[1743246200237,4.74590738,605.27,604.95,1.623]
[1743246200436,3.82574813,605.26,604.95,1.623]
[1743246200633,0.92015925,605.27,604.95,1.623]
[1743246200634,3.82574813,605.25,604.95,1.623]
[1743246200830,0.92015925,605.27,604.95,1.623]
[1743246200831,3.33003893,605.24,604.95,1.623]
[1743246201034,3.82591951,605.23,604.95,1.623]
[1743246201236,3.82591951,605.22,604.95,1.623]
[1743246201436,3.33003893,605.21,604.95,1.623]
[1743246201637,3.33003893,605.2,604.95,1.623]
[1743246201841,3.33003893,605.19,604.95,1.623]
[1743246202040,3.33003893,605.18,604.6,1.23078804]
[1743246202342,3.33003893,605.17,604.61,0.27112553]
[1743246202539,3.33003893,605.16,604.61,0.27112553]
[1743246202743,3.33003893,605.15,604.54,0.27112553]
[1743246203044,3.33365482,605.14,604.55,0.27112553]
[1743246203343,3.33365482,605.13,604.54,0.27112553]
[1743246203543,3.33365482,605.12,604.55,0.27112553]
[1743246203748,3.33365482,605.11,604.54,0.27112553]
[1743246204043,3.33365482,605.1,604.55,0.27112553]
[1743246204241,3.33365482,605.09,604.54,0.27112553]
[1743246204441,3.33365482,605.08,604.55,0.27112553]
[1743246204745,0.81686974,605.07,604.56,0.27112553]
[1743246204945,0.81686974,605.06,604.55,1.033]
[1743246205142,0.92015925,605.07,604.57,0.27112553]
[1743246205339,0.81934509,605.06,604.58,0.27112553]
[1743246205644,2.0268033,605.05,604.59,0.27112553]
[1743246205846,0.81934509,605.04,604.56,0.27112553]
[1743246206043,0.81934509,605.03,604.57,0.27112553]
[1743246206241,2.0266637,605.02,604.58,0.27112553]
[1743246206438,6.74594712,606.33,604.55,1.033]
[1743246206439,3.33690514,605.01,604.59,0.27112553]
[1743246206744,1.207107,605.0,604.6,0.27112553]
[1743246206944,3.33651844,604.99,604.56,0.27112553]
[1743246207139,3.33651844,604.98,604.61,0.27112553]
[1743246207337,0.8190044,604.97,604.62,0.27112553]
[1743246207539,1.73916365,604.96,604.56,0.27112553]
[1743246207738,2.12898052,604.95,604.57,0.27112553]
[1743246207937,0.8190044,604.94,604.56,0.27112553]
[1743246208142,0.8190044,604.93,604.57,0.27112553]
[1743246208339,0.92015925,604.95,604.58,0.27112553]
[1743246208340,0.8190044,604.92,604.58,0.27112553]
[1743246208642,0.8190044,604.91,604.59,0.27112553]
[1743246208845,0.8190044,604.9,604.56,0.27112553]
[1743246209044,0.8190044,604.89,604.56,0.27112553]
[1743246209242,0.92015925,604.91,604.56,0.27112553]
[1743246209243,0.8190044,604.88,604.56,0.27112553]
[1743246209441,0.8190044,604.87,604.56,0.27112553]
[1743246209641,0.97352645,605.09,604.56,0.27112553]
[1743246209843,3.82828345,605.08,604.56,0.27112553]
[1743246210042,3.82828345,605.07,604.56,0.27112553]
[1743246210238,3.82828345,605.06,604.56,0.27112553]
[1743246210443,3.82828345,605.05,604.56,0.27112553]
[1743246210643,4.75183362,605.04,604.56,0.27112553]
[1743246210843,3.82828345,605.03,604.56,0.27112553]
[1743246211046,3.33224617,605.02,604.56,0.27112553]
[1743246211246,3.33224617,605.01,604.56,0.27112553]
[1743246211446,3.33224617,605.0,604.56,0.27112553]
[1743246211647,2.12672024,604.99,604.56,0.27112553]
[1743246211847,0.81796932,604.98,604.56,0.27112553]
[1743246212043,1.74151949,604.97,604.56,0.27112553]
[1743246212251,0.81796932,604.96,604.56,0.27112553]
[1743246212445,0.81796932,604.95,604.56,0.27112553]
[1743246212647,0.81796932,604.94,604.56,0.27112553]
[1743246212847,0.49597949,605.14,604.56,0.27112553]
[1743246213043,4.75008388,605.13,604.56,0.27112553]
[1743246213251,3.82693509,605.12,604.56,0.27112553]
[1743246213450,3.82693509,605.11,604.56,0.27112553]
[1743246213647,3.82693509,605.1,604.55,1.033]
[1743246213848,3.82693509,605.09,604.56,0.27117018]
[1743246214148,3.82693509,605.08,604.56,0.27117018]
[1743246214354,4.75008388,605.07,604.56,0.27117018]
[1743246214550,0.81764923,605.06,604.56,0.27117018]
[1743246214746,0.81764923,605.05,604.56,0.27117018]
[1743246214946,0.81764923,605.04,604.56,1.45817018]
[1743246215152,0.49588875,605.24,604.57,0.27117018]
[1743246215453,4.74922262,605.23,604.57,0.27117018]
[1743246215650,2.02247349,605.22,604.57,0.27117018]
[1743246215852,3.33047868,605.21,604.56,1.187]
[1743246216046,3.33047868,605.2,604.56,1.187]
[1743246216250,4.25337832,605.19,604.56,1.187]
[1743246216450,3.33040402,605.18,604.56,1.187]
[1743246216752,3.33020563,605.17,604.56,1.187]
[1743246216954,2.02227047,605.16,604.56,1.187]
[1743246217154,2.02227047,605.15,604.56,1.187]
[1743246217354,0.81745947,605.14,604.56,1.187]
[1743246217551,0.81745947,605.13,604.56,1.187]
[1743246217750,0.81745947,605.12,604.56,1.187]
[1743246217950,0.49585611,605.41,604.57,0.27108972]
[1743246218255,3.82598063,605.4,604.57,0.27108972]
[1743246218452,3.82598063,605.39,604.57,0.27108972]
[1743246218656,3.82598063,605.38,604.57,0.27108972]
[1743246218956,4.74890003,605.37,604.56,1.187]
[1743246219250,3.82598063,605.36,604.57,0.27106202]
[1743246219455,3.82598063,605.35,604.57,0.27106202]
[1743246219653,3.82598063,605.34,604.57,0.27106202]
[1743246219854,3.82598063,605.33,604.56,1.187]
[1743246220151,3.82598063,605.32,604.58,0.27107375]
[1743246220352,3.33012452,605.31,604.59,0.27104662]
[1743246220557,3.33012452,605.3,604.57,0.27104662]
[1743246220758,3.33012452,605.29,604.58,0.27106126]
[1743246220952,3.33012452,605.28,604.57,0.27106126]
[1743246221154,0.81743749,605.27,604.59,0.27106126]
[1743246221351,0.81743749,605.26,604.6,0.27106126]
[1743246221558,0.81743749,605.25,604.57,0.27106126]
[1743246221858,0.81743749,605.24,604.57,0.27106126]
[1743246222053,0.81743749,605.23,604.57,0.27106126]
[1743246222255,0.81716014,605.22,604.57,0.27106126]
[1743246222460,0.81716014,605.21,604.56,1.187]
[1743246222755,0.81716014,605.2,604.57,0.27104913]
[1743246222956,0.81716773,605.19,604.57,0.27104913]
[1743246223153,0.49576455,605.44,604.57,0.27104913]
[1743246223154,0.81716773,605.18,604.57,0.27104913]
[1743246223357,3.32843424,605.17,604.57,0.27104913]
[1743246223660,4.25069023,605.16,604.57,0.27104913]
[1743246223860,3.32839722,605.15,604.57,0.27104913]
[1743246224060,3.32839722,605.14,604.57,0.27104913]
[1743246224360,3.32839722,605.13,604.57,0.27104913]
[1743246224655,0.81716773,605.12,604.57,0.27104913]
[1743246224958,0.92229301,605.13,604.57,0.27104913]
[1743246225159,0.49582553,605.33,604.57,0.27104913]
[1743246225358,4.74665339,605.32,604.57,0.27104913]
[1743246225561,3.8242645,605.31,604.57,0.27104913]
[1743246225755,4.74665339,605.3,604.57,0.27104913]
[1743246225960,3.8242645,605.29,604.57,0.27104913]
[1743246226161,3.8242645,605.28,604.57,0.27104913]
[1743246226357,0.92238889,605.29,604.57,0.27104913]
[1743246226558,3.82469619,605.28,604.57,0.27104913]
[1743246226757,3.82469619,605.27,604.57,0.27104913]
[1743246226955,3.82469619,605.26,604.57,0.27104913]
[1743246227161,3.82469619,605.25,604.57,0.27104913]
[1743246227354,4.25125466,605.24,604.57,0.27104913]
[1743246227556,3.32886577,605.23,604.57,0.27104913]
[1743246227755,3.32886577,605.22,604.57,0.27104913]
[1743246227960,2.12453478,605.21,604.57,0.27104913]
[1743246228160,0.81712876,605.2,604.57,0.27104913]
[1743246228360,0.81712876,605.19,604.57,0.27104913]
[1743246228562,0.49578723,605.39,604.57,0.27104913]
[1743246228761,3.82535368,605.38,604.57,0.27104913]
[1743246228957,3.82535368,605.37,604.57,0.27104913]
[1743246229161,3.82535368,605.36,604.58,0.27105076]
[1743246229359,3.82535368,605.36,604.56,1.187]
[1743246229360,3.82535368,605.35,604.57,0.27105076]
[1743246229563,4.74803377,605.34,604.59,0.27105076]
[1743246229763,3.82535368,605.33,604.58,0.27105076]
[1743246230063,4.74803377,605.32,604.59,0.27105076]
[1743246230263,3.32956645,605.31,604.58,1.23078804]
[1743246230465,3.32956645,605.3,604.59,0.27105076]
[1743246230763,3.32956645,605.29,604.59,0.27105076]
[1743246230961,3.82537794,605.28,604.59,0.27105076]
[1743246231159,3.82537794,605.27,604.59,0.27105076]
[1743246231364,3.82537794,605.26,604.59,0.27105076]
[1743246231562,3.32956645,605.25,604.59,0.27105076]
[1743246231765,3.32956645,605.24,604.59,0.27105076]
[1743246232060,0.97126144,605.39,604.59,0.27105076]
[1743246232061,4.25224654,605.23,604.65,1.23078804]
[1743246232364,4.25224654,605.22,604.66,0.27105076]
[1743246232568,3.32970771,605.21,604.66,0.27105076]
[1743246232765,0.81729812,605.2,604.66,0.27105076]
[1743246233064,0.81729812,605.19,604.66,0.27105076]
[1743246233266,0.81729812,605.18,604.66,0.27105076]
[1743246233459,0.81729812,605.17,604.66,0.27105076]
[1743246233659,0.81729812,605.16,604.66,0.27105076]
[1743246233863,0.81729812,605.15,604.66,0.27105076]
[1743246234057,0.81729812,605.14,604.64,0.27105076]
[1743246234261,0.49580629,605.34,604.65,0.27105076]
[1743246234458,2.76080859,606.14,604.64,0.27105076]
[1743246234459,3.82635032,605.33,604.64,0.27105076]
[1743246234762,3.82635032,605.32,604.64,0.27105076]
[1743246235058,3.82635032,605.31,604.64,0.27105076]
[1743246235263,3.82635032,605.3,604.64,0.27105076]
[1743246235463,3.82635032,605.29,604.64,0.27105076]
[1743246235664,3.33054403,605.28,604.64,0.27105076]
[1743246235960,3.33054403,605.27,604.64,0.27105076]
[1743246236160,3.33054403,605.26,604.64,0.27105076]
[1743246236366,3.33054403,605.25,604.64,0.27105076]
[1743246236563,3.33054403,605.24,604.63,0.27105076]
[1743246236763,3.33054403,605.23,604.64,0.27105076]
[1743246237062,4.25349209,605.22,604.65,0.27105076]
[1743246237263,2.02248032,605.21,604.66,0.27105076]
[1743246237567,2.02248032,605.2,604.67,0.27105076]
[1743246237766,1.74048787,605.19,604.68,0.27107186]
[1743246237970,0.81753981,605.18,604.63,0.27107186]
[1743246238263,0.81753981,605.17,604.64,0.27107186]
[1743246238467,0.81753981,605.16,604.65,0.27107186]
[1743246238667,0.81753981,605.15,604.65,0.27107186]
[1743246238867,0.92294806,605.17,604.55,1.033]
[1743246238868,0.81771501,605.14,604.66,0.27107186]
[1743246239067,0.49580595,605.37,604.61,0.27107186]
[1743246239264,3.82708713,605.36,604.61,0.27107186]
[1743246239464,3.82708713,605.35,604.61,0.27107186]
[1743246239760,3.82708713,605.34,604.62,0.27107025]
[1743246240061,3.82708713,605.33,604.63,0.27107025]
[1743246240266,3.82708713,605.32,604.61,0.27107025]
[1743246240466,3.82708713,605.31,604.62,0.27107025]
[1743246240667,0.92332653,605.32,604.63,0.27107025]
[1743246240668,3.82708713,605.3,604.63,0.27107025]
[1743246240867,3.82708713,605.29,604.61,0.27107025]
[1743246241071,3.82708713,605.28,604.64,0.27107025]
[1743246241270,3.82708713,605.27,604.55,2.26378804]
[1743246241570,4.75041366,605.26,604.56,0.27110926]
[1743246241771,3.82708713,605.25,604.56,0.27110926]
[1743246241970,3.82708713,605.24,604.56,0.27110926]
[1743246242172,3.82708713,605.23,604.56,0.27110926]
[1743246242370,3.82708713,605.22,604.56,0.27110926]
[1743246242572,3.82708713,605.21,604.56,0.27110926]
[1743246242768,0.92332653,605.23,604.56,0.27110926]
[1743246242769,3.82708713,605.2,604.56,1.54610926]
[1743246242973,0.97126144,605.34,604.57,0.27110926]
[1743246242974,4.75041366,605.19,604.57,0.27110926]
[1743246243170,3.33128118,605.18,604.57,0.27110926]
[1743246243371,3.33128118,605.17,604.57,0.27110926]
[1743246243570,0.8177209,605.16,604.57,0.27110926]
[1743246243876,0.8177209,605.15,604.57,0.27110926]
[1743246244075,0.8177209,605.14,604.57,0.27110926]
[1743246244275,0.8177209,605.13,604.56,1.275]
[1743246244475,0.92332653,605.15,604.57,0.27108769]
[1743246244476,0.8177209,605.12,604.57,0.27108769]
[1743246244676,0.8177209,605.11,604.57,0.27108769]
[1743246244877,0.49584319,605.32,604.57,0.27108769]
[1743246245177,3.82674269,605.31,604.57,0.27108769]
[1743246245372,3.82674269,605.3,604.57,0.27108769]
[1743246245574,3.82674269,605.29,604.57,0.27108769]
[1743246245872,4.74981253,605.28,604.57,0.27108769]
[1743246246179,3.82674269,605.27,604.57,0.27108769]
[1743246246378,3.3308995,605.26,604.57,0.27108769]
[1743246246678,2.76080859,606.12,604.57,0.27108769]
[1743246246679,1.7406972,605.25,604.71,1.23078804]
[1743246246883,0.92306984,605.25,604.72,0.27108769]
[1743246247074,2.0251611,605.24,604.71,1.23078804]
[1743246247279,2.0251611,605.23,604.71,1.23078804]
[1743246247479,2.94982889,605.22,604.71,1.23078804]
[1743246247778,0.92466779,605.22,604.71,1.23078804]
[1743246247980,0.92466779,605.21,604.71,1.23078804]
[1743246248676,0.92466779,605.2,604.71,1.23078804]
[1743246248877,0.92466779,605.2,604.61,0.287614]
[1743246249072,0.92466779,605.19,604.61,0.287614]
[1743246249780,0.92466779,605.18,604.61,0.287614]
[1743246249981,0.92466779,605.18,604.62,0.27105283]
[1743246250280,0.8203153,605.17,604.62,0.27105283]
[1743246250478,0.92466779,605.17,604.57,0.27105283]
[1743246250678,0.92466779,605.17,604.58,0.27105283]
[1743246250875,0.92466779,605.17,604.57,0.27105283]
[1743246251080,0.92466779,605.16,604.58,0.27105283]
[1743246251278,0.82122083,605.15,604.57,0.27105283]
[1743246251480,0.92466779,605.14,604.63,1.23078804]
[1743246251674,0.92466779,605.14,604.64,0.27105283]
[1743246251880,0.49578193,605.4,604.64,0.27105283]
[1743246252075,3.84156559,605.39,604.64,0.27105283]
[1743246252281,3.84156559,605.38,604.64,0.27105283]
[1743246252477,3.84156559,605.37,604.64,0.27105283]
[1743246252680,3.84156559,605.36,604.64,0.27105283]
[1743246252875,0.97355501,605.33,604.64,0.27105283]
[1743246253082,4.76920107,605.32,604.64,0.27105283]
[1743246253280,3.84156559,605.31,604.64,0.27105283]
[1743246253479,3.84323092,605.3,604.64,0.27105283]
[1743246253678,3.84323092,605.29,604.64,0.27105283]
[1743246253880,3.84323092,605.28,604.64,0.27105283]
[1743246254079,3.84323092,605.27,604.88,1.23078804]
[1743246254282,3.84323092,605.26,604.88,1.23078804]
[1743246254482,3.84323092,605.25,604.88,1.23078804]
[1743246254782,4.7708664,605.24,604.88,1.23078804]
[1743246254982,3.84323092,605.23,604.88,1.23078804]
[1743246255177,3.84323092,605.22,604.88,1.23078804]
[1743246255378,3.8447959,605.21,604.88,1.23078804]
[1743246255583,4.77244555,605.2,604.88,1.23078804]
[1743246255783,3.34896051,605.19,604.88,1.23078804]
[1743246256083,3.34896051,605.19,604.65,0.99352123]
[1743246256084,4.27659599,605.18,604.65,1.23078804]
[1743246256283,3.34896051,605.17,604.65,1.23078804]
[1743246256485,3.34896051,605.16,604.65,1.23078804]
[1743246256681,3.34896051,605.15,604.65,1.23078804]
[1743246256885,2.03392403,605.14,604.66,0.27107787]
[1743246257089,2.03392403,605.13,604.66,0.27107787]
[1743246257284,2.96155951,605.12,604.66,0.27107787]
[1743246257480,2.03392403,605.11,604.66,0.27107787]
[1743246257680,2.03392403,605.1,604.66,1.601]
[1743246257884,2.03392403,605.09,604.67,0.27108145]
[1743246258084,2.96155951,605.08,604.66,1.601]
[1743246258386,0.8218978,605.07,604.67,0.27107358]
[1743246258587,0.92763548,605.07,604.67,0.27107358]
[1743246258782,2.96251777,605.06,604.67,0.27107358]
[1743246258992,3.35080858,605.05,604.66,1.601]
[1743246259188,3.35080858,605.04,604.66,1.601]
[1743246259381,3.35080858,605.03,604.66,1.601]
[1743246259587,3.35080858,605.02,604.66,1.601]
[1743246259888,3.35057562,605.01,604.66,1.601]
[1743246260091,3.35057562,605.0,604.66,1.601]
[1743246260283,2.03464933,604.99,604.66,1.601]
[1743246260485,3.35040528,604.98,604.66,1.601]
[1743246260689,2.03464933,604.97,604.67,0.27115447]
[1743246260983,2.03464933,604.96,604.68,0.27113694]
[1743246261189,0.92763548,604.97,604.67,0.27113694]
[1743246261497,0.92763548,604.97,604.68,0.27113694]
[1743246261692,0.49586162,605.2,604.67,0.27113694]
[1743246261887,3.84671993,605.19,604.68,0.27113694]
[1743246262093,3.84671993,605.18,604.67,0.27113694]
[1743246262294,3.35085831,605.17,604.68,0.27113694]
[1743246262594,3.8466937,605.16,604.69,0.27113694]
[1743246262795,3.35085831,605.15,604.67,0.27113694]
[1743246262990,3.35085831,605.14,604.68,0.27113694]
[1743246263292,3.35085831,605.13,604.7,1.23078804]
[1743246263493,3.35085831,605.12,604.71,0.27113694]
[1743246263794,2.96344667,605.11,604.71,0.27113694]
[1743246263990,2.03481316,605.1,604.71,0.27113694]
[1743246264195,0.82252822,605.09,604.71,0.27113694]
[1743246264396,0.92863351,605.1,604.71,0.27113694]
[1743246264590,2.03520726,605.09,604.71,0.27113694]
[1743246264792,2.96380027,605.08,604.71,0.27113694]
[1743246265093,0.92863351,605.08,604.71,0.27113694]
[1743246265291,0.92863351,605.08,604.8,1.23078804]
[1743246265494,0.92863351,605.07,604.81,0.27113694]
[1743246266095,0.92863351,605.06,604.81,0.27113694]
[1743246266597,0.49578625,605.31,604.8,1.23078804]
[1743246266796,3.84749534,605.3,604.81,0.27105435]
[1743246266991,4.77633412,605.29,604.81,0.27105435]
[1743246267194,3.84749534,605.28,604.81,0.27105435]
[1743246267395,3.84749534,605.27,604.8,1.23078804]
[1743246267597,3.84749534,605.26,604.8,1.23078804]
[1743246267799,3.84749534,605.25,604.8,1.23078804]
[1743246268102,4.82530557,605.24,604.8,1.23078804]
[1743246268299,0.97781023,605.22,604.8,1.23078804]
[1743246268601,3.84749534,605.21,604.8,1.23078804]
[1743246268901,3.84749534,605.21,604.66,1.601]
[1743246268902,4.77633412,605.2,604.74,1.23078804]
[1743246269102,3.84749534,605.19,604.74,1.23078804]
[1743246269305,0.97805201,605.13,604.74,1.23078804]
[1743246269497,4.82592417,605.12,604.74,1.23078804]
[1743246269803,3.84787216,605.11,604.74,1.23078804]
[1743246270006,3.84787216,605.1,604.74,1.23078804]
[1743246270199,4.77671094,605.09,604.74,1.23078804]
[1743246270504,3.84787216,605.08,604.74,1.23078804]
[1743246270699,0.97805201,605.06,604.74,1.23078804]
[1743246270905,3.84787216,605.05,604.74,1.23078804]
[1743246271110,0.97805201,605.06,604.66,1.601]
[1743246271111,3.84787216,605.04,604.66,1.601]
[1743246271301,3.84787216,605.03,604.66,1.601]
[1743246271497,4.77671094,605.02,604.66,1.601]
[1743246271703,3.84787216,605.01,604.66,1.601]
[1743246271903,3.84787216,605.0,604.66,1.601]
[1743246272104,3.84787216,604.99,604.66,1.601]
[1743246272310,3.84787216,604.98,604.66,1.601]
[1743246272502,3.84787216,604.97,604.66,1.601]
[1743246272703,3.84787216,604.96,604.66,1.601]
[1743246272998,3.84787216,604.95,604.66,1.601]
[1743246273204,3.84777731,604.94,604.66,1.601]
[1743246273398,3.84777731,604.93,604.66,1.601]
[1743246273599,3.35184978,604.92,604.66,1.601]
[1743246273904,3.35184978,604.91,604.66,1.601]
[1743246274104,3.35184978,604.9,604.66,1.601]
[1743246274298,2.03533102,604.89,604.66,1.601]
[1743246274502,2.96412773,604.88,604.66,1.601]
[1743246274804,2.03533102,604.87,604.66,1.601]
[1743246275003,2.03533102,604.86,604.66,1.601]
[1743246275305,0.92879671,604.86,604.66,1.601]
[1743246275804,0.92879671,604.85,604.66,1.601]
[1743246276104,1.75133975,604.84,604.66,2.652]
[1743246276404,0.92879671,604.84,604.66,2.652]
[1743246276602,0.92879671,604.83,604.66,2.652]
[1743246277300,0.8223224,604.82,604.66,2.652]
[1743246277506,0.82230777,604.81,604.66,2.652]
[1743246277803,0.92879671,604.8,604.66,2.652]
[1743246278005,0.82225874,604.79,604.66,2.652]
[1743246278205,0.92879671,604.8,604.66,2.652]
[1743246278601,0.92879671,604.79,604.66,2.652]
[1743246279203,0.92879671,604.78,604.66,2.652]
[1743246279808,0.49602147,604.97,604.66,2.652]
[1743246280109,4.77253976,604.96,604.66,2.652]
[1743246280408,4.27651829,604.95,604.66,2.652]